[Event "Champions Showdown Kings Blitz 2019-D"]
[Site "Saint Louis"]
[Date "2019.02.22"]
[Round "2"]
[White "Dominguez Perez, Leinier"]
[Black "Topalov, Veselin"]
[Result "1/2-1/2"]
[ECO "C54"]
[WhiteElo "2739"]
[BlackElo "2740"]
[Annotator "ChessBase"]
[PlyCount "114"]
[EventDate "2019.02.09"]
[EventType "match"]
[EventCountry "USA"]
[SourceTitle "playchess.com"]
[Source "ChessBase"]
[SourceQuality "1"]
[TimeControl "900+10"]

1. e4 {[%emt 0:12:10]} e5 {[%emt 0:12:07]} 2. Nf3 {[%emt 0:00:09]} Nc6 {[%emt 0:00:09]} 3. Bc4 {[%emt 0:00:09]} Bc5 {[%emt 0:00:10]} 4. c3 {[%emt 0:00:09]} Nf6 {[%emt 0:00:09]} 5. d3 {[%emt 0:00:09]} d6 {[%emt 0:00:11]} 6. Nbd2 {[%emt 0:00:09]} a6 {[%emt 0:00:11]} 7. Bb3 {[%emt 0:00:08]} O-O {[%emt 0:00:13]} 8. Nf1 {[%emt 0:00:09]} d5 {[%emt 0:00:14]} 9. exd5 {[%emt 0:00:10]} Nxd5 {[%emt 0:00:10]} 10. Ng3 {[%emt 0:00:09]} f6 {[%emt 0:00:32]} 11. O-O {[%emt 0:00:25]} Be6 {[%emt 0:00:10]} 12. Be3 {[%emt 0:00:17]} Bxe3 {[%emt 0:00:17]} 13. fxe3 {[%emt 0:00:09]} Qd7 {[%emt 0:00:09]} 14. Qe2 {[%emt 0:00:31]} Rad8 {[%emt 0:00:14]} 15. Rad1 {[%emt 0:00:09]} Rfe8 {[%emt 0:00:17]} 16. Kh1 {[%emt 0:00:16]} Qe7 {[%emt 0:00:09]} 17. Nh4 {[%emt 0:00:17]} g6 {[%emt 0:00:14]} 18. Nf3 {[%emt 0:00:19]} Kg7 {[%emt 0:00:13]} 19. Qf2 {[%emt 0:00:14]} Rf8 {[%emt 0:00:38]} 20. d4 {[%emt 0:00:13]} exd4 {[%emt 0:00:18]} 21. exd4 {[%emt 0:00:09]} Na5 {[%emt 0:00:17]} 22. Bc2 {[%emt 0:00:11]} Nc4 {[%emt 0:00:11]} 23. Rde1 {[%emt 0:00:19]} Qd7 {[%emt 0:00:18]} 24. Bd3 {[%emt 0:00:13]} Nd6 {[%emt 0:00:16]} 25. Qd2 {[%emt 0:00:13]} b5 {[%emt 0:00:18]} 26. b3 {[%emt 0:00:26]} Nb6 {[%emt 0:00:09]} 27. Re2 {[%emt 0:00:22]} Rde8 {[%emt 0:00:11]} 28. Ref2 {[%emt 0:00:08]} Bd5 {[%emt 0:00:15]} 29. h3 {[%emt 0:00:36]} a5 {[%emt 0:00:12]} 30. Kh2 {[%emt 0:00:12]} a4 {[%emt 0:00:09]} 31. Bc2 {[%emt 0:00:12]} axb3 {[%emt 0:00:09]} 32. axb3 {[%emt 0:00:08]} Ne4 {[%emt 0:00:18]} 33. Nxe4 {[%emt 0:00:25]} Bxe4 {[%emt 0:00:09]} 34. Bxe4 {[%emt 0:00:10]} Rxe4 {[%emt 0:00:09]} 35. Ne5 {[%emt 0:00:10]} Qd6 {[%emt 0:00:25]} 36. Kh1 {[%emt 0:00:08]} Nd5 {[%emt 0:00:15]} 37. Ng4 {[%emt 0:00:12]} f5 {[%emt 0:00:09]} 38. Ne5 {[%emt 0:00:20]} b4 {[%emt 0:00:09]} 39. cxb4 {[%emt 0:00:11]} Qxb4 {[%emt 0:00:09]} 40. Qg5 {[%emt 0:00:28]} Qxd4 {[%emt 0:00:12]} 41. Ng4 {[%emt 0:00:10]} Ne3 {[%emt 0:00:31]} 42. Nxe3 {[%emt 0:00:12]} Qxe3 {[%emt 0:00:09]} 43. Qxe3 {[%emt 0:00:11]} Rxe3 {[%emt 0:00:09]} 44. Rc2 {[%emt 0:00:09]} Rf7 {[%emt 0:00:09]} 45. Rfc1 {[%emt 0:00:08]} Rxb3 {[%emt 0:00:09]} 46. Rxc7 {[%emt 0:00:09]} Rxc7 {[%emt 0:00:09]} 47. Rxc7+ {[%emt 0:00:09]} Kh6 {[%emt 0:00:09]} 48. Kh2 {[%emt 0:00:11]} f4 {[%emt 0:00:09]} 49. Rc5 {[%emt 0:00:10]} g5 {[%emt 0:00:11]} 50. Rc7 {[%emt 0:00:10]} Kg6 {[%emt 0:00:09]} 51. Kg1 {[%emt 0:00:10]} h6 {[%emt 0:00:09]} 52. Rc6+ {[%emt 0:00:09]} Kh5 {[%emt 0:00:09]} 53. Kf2 {[%emt 0:00:09]} Ra3 {[%emt 0:00:11]} 54. Rd6 {[%emt 0:00:08]} Ra2+ {[%emt 0:00:15]} 55. Kf3 {[%emt 0:00:09]} Ra1 {[%emt 0:00:11]} 56. Kf2 {[%emt 0:00:10]} Ra3 {[%emt 0:00:09]} 57. Rc6 {[%emt 0:00:09]} Rb3 {[%emt 0:00:09]} 1/2-1/2

[Event "Champions Showdown Kings Blitz 2019-D"]
[Site "Saint Louis"]
[Date "2019.02.22"]
[Round "8"]
[White "Dominguez Perez, Leinier"]
[Black "Topalov, Veselin"]
[Result "1/2-1/2"]
[ECO "C54"]
[WhiteElo "2739"]
[BlackElo "2740"]
[Annotator "ChessBase"]
[PlyCount "141"]
[EventDate "2019.02.09"]
[EventType "match"]
[EventCountry "USA"]
[SourceTitle "playchess.com"]
[Source "ChessBase"]
[SourceQuality "1"]
[TimeControl "900+10"]

1. e4 {[%emt 0:12:07]} e5 {[%emt 0:12:07]} 2. Nf3 {[%emt 0:00:09]} Nc6 {[%emt 0:00:09]} 3. Bc4 {[%emt 0:00:09]} Bc5 {[%emt 0:00:09]} 4. c3 {[%emt 0:00:09]} Nf6 {[%emt 0:00:10]} 5. d3 {[%emt 0:00:09]} a6 {[%emt 0:00:09]} 6. Bb3 {[%emt 0:00:11]} O-O {[%emt 0:00:14]} 7. O-O {[%emt 0:00:15]} d6 {[%emt 0:00:10]} 8. Nbd2 {[%emt 0:00:15]} Re8 {[%emt 0:00:11]} 9. h3 {[%emt 0:00:13]} Be6 {[%emt 0:00:11]} 10. Bc2 {[%emt 0:00:09]} h6 {[%emt 0:00:16]} 11. Re1 {[%emt 0:00:09]} d5 {[%emt 0:00:20]} 12. exd5 {[%emt 0:00:10]} Bxd5 {[%emt 0:00:08]} 13. Nh2 {[%emt 0:00:08]} Qd7 {[%emt 0:00:13]} 14. Ne4 {[%emt 0:00:13]} Nxe4 {[%emt 0:00:10]} 15. dxe4 {[%emt 0:00:09]} Be6 {[%emt 0:00:09]} 16. Qf3 {[%emt 0:00:10]} Ne7 {[%emt 0:00:52]} 17. Ng4 {[%emt 0:00:09]} Ng6 {[%emt 0:00:09]} 18. Ne3 {[%emt 0:00:09]} Rad8 {[%emt 0:00:25]} 19. Nf5 {[%emt 0:00:21]} Nf4 {[%emt 0:00:16]} 20. Bxf4 {[%emt 0:00:17]} exf4 {[%emt 0:00:16]} 21. Rad1 {[%emt 0:00:09]} Qc6 {[%emt 0:00:09]} 22. Qxf4 {[%emt 0:00:24]} Qb6 {[%emt 0:00:29]} 23. b4 {[%emt 0:00:33]} Bf8 {[%emt 0:00:10]} 24. e5 {[%emt 0:00:09]} Bxa2 {[%emt 0:00:46]} 25. Rxd8 {[%emt 0:00:50]} Rxd8 {[%emt 0:00:08]} 26. Re3 {[%emt 0:00:09]} Kh8 {[%emt 0:00:22]} 27. Nd4 {[%emt 0:00:37]} c5 {[%emt 0:00:13]} 28. bxc5 {[%emt 0:00:15]} Bxc5 {[%emt 0:00:09]} 29. e6 {[%emt 0:00:19]} Bxd4 {[%emt 0:00:11]} 30. exf7 {[%emt 0:00:15]} Bxf7 {[%emt 0:00:13]} 31. cxd4 {[%emt 0:00:10]} Bg8 {[%emt 0:00:13]} 32. Re7 {[%emt 0:00:27]} Qd6 {[%emt 0:00:14]} 33. Qxd6 Rxd6 {[%emt 0:00:09]} 34. Rxb7 {[%emt 0:00:27]} g5 {[%emt 0:00:12]} 35. Rb4 {[%emt 0:00:13]} Kg7 {[%emt 0:00:10]} 36. Kf1 {[%emt 0:00:13]} Bd5 {[%emt 0:00:11]} 37. f3 {[%emt 0:00:12]} Bc6 {[%emt 0:00:10]} 38. Kf2 Bb5 39. Ke3 {[%emt 0:00:21]} Re6+ {[%emt 0:00:18]} 40. Be4 {[%emt 0:00:08]} Kf6 {[%emt 0:00:09]} 41. d5 {[%emt 0:00:09]} Rb6 {[%emt 0:00:10]} 42. Rb2 {[%emt 0:00:12]} Ke5 {[%emt 0:00:10]} 43. g3 {[%emt 0:00:09]} Rb8 {[%emt 0:00:10]} 44. f4+ {[%emt 0:00:09]} Kd6 {[%emt 0:00:10]} 45. fxg5 {[%emt 0:00:12]} hxg5 {[%emt 0:00:09]} 46. Rf2 {[%emt 0:00:10]} Rc8 {[%emt 0:00:09]} 47. Rf6+ {[%emt 0:00:10]} Kc5 {[%emt 0:00:09]} 48. Rf5 {[%emt 0:00:12]} a5 {[%emt 0:00:10]} 49. d6+ {[%emt 0:00:08]} Kb6 50. Rxg5 {[%emt 0:00:10]} a4 {[%emt 0:00:18]} 51. Bd5 {[%emt 0:00:11]} Rd8 {[%emt 0:00:09]} 52. Kd4 {[%emt 0:00:10]} Rxd6 {[%emt 0:00:09]} 53. Ke5 {[%emt 0:00:10]} Rd8 {[%emt 0:00:09]} 54. Rf5 {[%emt 0:00:11]} Kc5 {[%emt 0:00:09]} 55. Be6 {[%emt 0:00:09]} a3 {[%emt 0:00:10]} 56. Rf3 {[%emt 0:00:11]} Kb4 {[%emt 0:00:12]} 57. Rb3+ {[%emt 0:00:09]} Ka4 {[%emt 0:00:09]} 58. Rb1 {[%emt 0:00:09]} Re8 {[%emt 0:00:09]} 59. Kf6 {[%emt 0:00:10]} Rd8 {[%emt 0:00:11]} 60. g4 {[%emt 0:00:09]} Rd6 {[%emt 0:00:11]} 61. Ke5 {[%emt 0:00:09]} Rd3 {[%emt 0:00:09]} 62. g5 {[%emt 0:00:09]} Re3+ {[%emt 0:00:13]} 63. Kf6 {[%emt 0:00:09]} Rf3+ {[%emt 0:00:11]} 64. Kg7 {[%emt 0:00:11]} Re3 {[%emt 0:00:09]} 65. Bf7 {[%emt 0:00:09]} Rxh3 {[%emt 0:00:10]} 66. g6 {[%emt 0:00:09]} Rg3 {[%emt 0:00:09]} 67. Kf6 {[%emt 0:00:10]} Bd3 {[%emt 0:00:10]} 68. Re1 {[%emt 0:00:09]} a2 {[%emt 0:00:12]} 69. g7 {[%emt 0:00:14]} Bb1 {[%emt 0:00:12]} 70. Bxa2 Bxa2 {[%emt 0:00:09]} 71. Ke5 1/2-1/2

[Event "Champions Showdown Kings Blitz 2019-D"]
[Site "Saint Louis"]
[Date "2019.02.22"]
[Round "12"]
[White "Dominguez Perez, Leinier"]
[Black "Topalov, Veselin"]
[Result "1/2-1/2"]
[ECO "D04"]
[WhiteElo "2739"]
[BlackElo "2740"]
[Annotator "ChessBase"]
[PlyCount "100"]
[EventDate "2019.02.09"]
[EventType "match"]
[EventCountry "USA"]
[SourceTitle "playchess.com"]
[Source "ChessBase"]
[SourceQuality "1"]
[TimeControl "900+10"]

1. d4 {[%emt 0:12:06]} Nf6 {[%emt 0:12:07]} 2. Nf3 {[%emt 0:00:10]} d5 {[%emt 0:00:09]} 3. e3 {[%emt 0:00:08]} c6 {[%emt 0:00:09]} 4. Nbd2 {[%emt 0:00:10]} Bf5 {[%emt 0:00:14]} 5. Bd3 {[%emt 0:00:34]} Bg6 {[%emt 0:00:16]} 6. Ne5 {[%emt 0:00:14]} e6 {[%emt 0:00:09]} 7. Nxg6 {[%emt 0:00:16]} hxg6 {[%emt 0:00:09]} 8. c4 {[%emt 0:00:11]} Nbd7 {[%emt 0:00:14]} 9. O-O {[%emt 0:00:20]} Bd6 {[%emt 0:00:12]} 10. h3 {[%emt 0:00:11]} O-O {[%emt 0:00:16]} 11. Nf3 {[%emt 0:00:23]} Qe7 {[%emt 0:00:15]} 12. a3 {[%emt 0:00:27]} e5 {[%emt 0:00:25]} 13. dxe5 {[%emt 0:00:33]} Nxe5 {[%emt 0:00:10]} 14. cxd5 {[%emt 0:00:16]} Nxd3 {[%emt 0:00:19]} 15. Qxd3 {[%emt 0:00:09]} Nxd5 {[%emt 0:00:09]} 16. Bd2 {[%emt 0:00:10]} Rad8 {[%emt 0:00:12]} 17. Qc2 {[%emt 0:00:09]} Rfe8 {[%emt 0:00:10]} 18. Rac1 {[%emt 0:00:12]} Rd7 {[%emt 0:00:12]} 19. e4 {[%emt 0:00:31]} Nf4 {[%emt 0:00:16]} 20. Bxf4 {[%emt 0:00:31]} Bxf4 {[%emt 0:00:09]} 21. Rce1 {[%emt 0:00:09]} Bc7 {[%emt 0:00:21]} 22. g3 {[%emt 0:00:11]} Qe6 {[%emt 0:00:16]} 23. Kg2 {[%emt 0:00:10]} Red8 {[%emt 0:00:09]} 24. Re3 {[%emt 0:00:17]} Bb6 {[%emt 0:00:09]} 25. Rc3 Ba5 {[%emt 0:00:23]} 26. b4 {[%emt 0:00:25]} Bb6 {[%emt 0:00:08]} 27. Re1 {[%emt 0:00:08]} a5 {[%emt 0:00:14]} 28. Re2 {[%emt 0:00:09]} axb4 {[%emt 0:00:10]} 29. axb4 {[%emt 0:00:09]} Rd1 {[%emt 0:00:25]} 30. h4 {[%emt 0:00:15]} R1d7 {[%emt 0:00:10]} 31. e5 {[%emt 0:00:16]} Rd1 {[%emt 0:00:22]} 32. Ng5 {[%emt 0:00:14]} Qd5+ {[%emt 0:00:11]} 33. Rf3 {[%emt 0:00:09]} Rd3 {[%emt 0:00:37]} 34. Qxd3 {[%emt 0:00:16]} Qxd3 {[%emt 0:00:13]} 35. Rxd3 {[%emt 0:00:09]} Rxd3 {[%emt 0:00:09]} 36. e6 {[%emt 0:00:09]} fxe6 {[%emt 0:00:17]} 37. Rxe6 {[%emt 0:00:08]} Rd8 {[%emt 0:00:12]} 38. Re7 {[%emt 0:00:17]} Bd4 {[%emt 0:00:17]} 39. Rxb7 {[%emt 0:00:09]} Bf6 {[%emt 0:00:09]} 40. Ne6 {[%emt 0:00:12]} Re8 {[%emt 0:00:12]} 41. Nf4 {[%emt 0:00:10]} g5 {[%emt 0:00:09]} 42. hxg5 {[%emt 0:00:11]} Bxg5 {[%emt 0:00:08]} 43. Nh5 {[%emt 0:00:09]} Re7 {[%emt 0:00:09]} 44. Rb6 {[%emt 0:00:13]} Bd2 {[%emt 0:00:09]} 45. f4 {[%emt 0:00:10]} Kf7 {[%emt 0:00:09]} 46. g4 {[%emt 0:00:11]} g6 {[%emt 0:00:09]} 47. Ng3 {[%emt 0:00:09]} Bxf4 {[%emt 0:00:09]} 48. Rxc6 {[%emt 0:00:10]} Rb7 {[%emt 0:00:11]} 49. Rc4 {[%emt 0:00:09]} Bd6 {[%emt 0:00:08]} 50. Ne4 {[%emt 0:00:09]} Bxb4 {[%emt 0:00:10]} 1/2-1/2

[Event "Champions Showdown Kings Blitz 2019-D"]
[Site "Saint Louis"]
[Date "2019.02.22"]
[Round "23"]
[White "Topalov, Veselin"]
[Black "Dominguez Perez, Leinier"]
[Result "1/2-1/2"]
[ECO "B07"]
[WhiteElo "2740"]
[BlackElo "2739"]
[Annotator "RC"]
[PlyCount "129"]
[EventDate "2019.02.09"]
[EventType "match"]
[EventCountry "USA"]
[SourceTitle "playchess.com"]
[Source "ChessBase"]
[SourceQuality "1"]
[TimeControl "900+10"]

1. e4 {[%emt 0:12:08]} d6 {[%emt 0:12:08]} 2. d4 {[%emt 0:00:09]} Nf6 {[%emt 0:00:09]} 3. Nc3 {[%emt 0:00:09]} g6 {[%emt 0:00:08]} 4. h3 {[%emt 0:00:10]} Bg7 {[%emt 0:00:10]} 5. Be3 {[%emt 0:00:09]} a6 {[%emt 0:00:08]} 6. f4 {[%emt 0:00:10]} O-O {[%emt 0:00:12]} 7. Bd3 {[%emt 0:00:21]} b5 {[%emt 0:00:14]} 8. e5 {[%emt 0:00:10]} dxe5 {[%emt 0:00:21]} 9. dxe5 {[%emt 0:00:18]} Nd5 {[%emt 0:00:09]} 10. Nxd5 {[%emt 0:00:09]} Qxd5 {[%emt 0:00:09]} 11. Nf3 {[%emt 0:00:12]} c5 {[%emt 0:00:23]} 12. O-O {[%emt 0:00:17]} Bb7 {[%emt 0:00:21]} 13. c3 {[%emt 0:00:12]} Nd7 {[%emt 0:00:18]} 14. a4 {[%emt 0:00:20]} Qc6 {[%emt 0:00:41]} 15. Qe2 {[%emt 0:00:16]} bxa4 {[%emt 0:00:14]} 16. Bc2 {[%emt 0:00:10]} Nb6 {[%emt 0:00:09]} 17. f5 {[%emt 0:00:14]} Qb5 {[%emt 0:00:15]} 18. Qf2 {[%emt 0:00:11]} Bxf3 {[%emt 0:00:12]} 19. Qxf3 {[%emt 0:00:13]} Bxe5 {[%emt 0:00:15]} 20. Be4 {[%emt 0:00:28]} Rad8 {[%emt 0:00:14]} 21. Bh6 {[%emt 0:00:10]} Bg7 {[%emt 0:00:10]} 22. Bxg7 {[%emt 0:00:09]} Kxg7 {[%emt 0:00:09]} 23. Rf2 {[%emt 0:00:19]} Nd7 {[%emt 0:00:38]} 24. Re1 {[%emt 0:00:24]} Qb8 {[%emt 0:00:44]} 25. Bc2 {[%emt 0:00:29]} Qd6 {[%emt 0:00:11]} 26. Bxa4 {[%emt 0:00:14]} Nf6 {[%emt 0:00:22]} 27. Bb3 {[%emt 0:00:15]} Rd7 {[%emt 0:00:17]} 28. Bc4 {[%emt 0:00:09]} Rfd8 {[%emt 0:00:10]} 29. Rfe2 {[%emt 0:00:24]} a5 {[%emt 0:00:10]} 30. b3 {[%emt 0:00:10]} Qc7 {[%emt 0:00:09]} 31. fxg6 {[%emt 0:00:25]} hxg6 {[%emt 0:00:09]} 32. Re5 {[%emt 0:00:09]} Rd1 {[%emt 0:00:17]} 33. Rxe7 {[%emt 0:00:12]} Qxe7 {[%emt 0:00:10]} 34. Rxd1 {[%emt 0:00:09]} Rxd1+ {[%emt 0:00:09]} 35. Qxd1 {[%emt 0:00:09]} Qe3+ {[%emt 0:00:08]} 36. Kh1 {[%emt 0:00:13]} Qxc3 {[%emt 0:00:13]} 37. Qf1 {[%emt 0:00:10]} Qe5 {[%emt 0:00:11]} 38. Qf3 {[%emt 0:00:11]} Qe1+ {[%emt 0:00:09]} 39. Kh2 {[%emt 0:00:09]} Qe5+ {[%emt 0:00:08]} 40. Kh1 {[%emt 0:00:09]} Qc7 {[%emt 0:00:09]} 41. Qc3 {[%emt 0:00:11]} Qd8 {[%emt 0:00:09]} 42. Qe5 {[%emt 0:00:11]} Qd1+ {[%emt 0:00:11]} 43. Kh2 {[%emt 0:00:08]} Qd4 {[%emt 0:00:11]} 44. Qc7 {[%emt 0:00:11]} Nd5 {[%emt 0:00:11]} 45. Bxd5 {[%emt 0:00:09]} Qxd5 {[%emt 0:00:09]} 46. Qxa5 {[%emt 0:00:10]} Qe5+ {[%emt 0:00:09]} 47. Kh1 {[%emt 0:00:09]} Kf6 {[%emt 0:00:11]} 48. Qb5 {[%emt 0:00:09]} Kf5 {[%emt 0:00:12]} 49. Qc4 {[%emt 0:00:10]} Qa1+ {[%emt 0:00:11]} 50. Kh2 {[%emt 0:00:09]} Qe5+ {[%emt 0:00:09]} 51. Kh1 Kf6 52. Kg1 {[%emt 0:00:26]} Ke7 {[%emt 0:00:17]} 53. Kf1 {[%emt 0:00:09]} f6 {[%emt 0:00:09]} 54. Kf2 {[%emt 0:00:13]} g5 {[%emt 0:00:11]} 55. Kf3 {[%emt 0:00:09]} Kd6 {[%emt 0:00:10]} 56. Qd3+ {[%emt 0:00:10]} Kc6 {[%emt 0:00:09]} 57. Qc4 {[%emt 0:00:10]} Kb6 {[%emt 0:00:09]} 58. g3 {[%emt 0:00:11]} Qf5+ {[%emt 0:00:09]} 59. Kg2 {[%emt 0:00:09]} Qe5 {[%emt 0:00:13]} 60. h4 {[%emt 0:00:11]} Qf5 {[%emt 0:00:09]} 61. b4 {[%emt 0:00:14]} cxb4 {[%emt 0:00:12]} 62. Qxb4+ {[%emt 0:00:09]} Kc6 {[%emt 0:00:08]} 63. Qc4+ {[%emt 0:00:09]} Kd6 {[%emt 0:00:09]} 64. Qd4+ {[%emt 0:00:09]} Ke7 {[%emt 0:00:11]} 65. hxg5 {[%emt 0:00:09]} 1/2-1/2